bitfinex/quotes_BTCUSD_20241003
["timestamp","ask_amount","ask_price","bid_price","bid_amount"]
[1727992448295,0.001636,60886.0,60885.0,0.35779217]
[1727992476918,0.001636,60886.0,60885.0,0.19460546]
[1727992502723,0.001636,60886.0,60885.0,0.36870546]
[1727992517933,0.001636,60886.0,60885.0,0.20446146]
[1727992520986,0.001636,60886.0,60885.0,0.36870546]
[1727992527843,0.001636,60886.0,60885.0,0.20446146]
[1727992547912,0.001636,60886.0,60885.0,0.53189217]
[1727992548814,0.001636,60886.0,60885.0,0.52589217]
[1727992549047,0.001636,60886.0,60885.0,0.53189217]
[1727992549517,0.001636,60886.0,60885.0,0.51589217]
[1727992549735,0.001636,60886.0,60885.0,0.52589217]
[1727992550033,0.001636,60886.0,60885.0,0.52289217]
[1727992550094,0.001636,60886.0,60885.0,0.53389217]
[1727992550876,0.001636,60886.0,60885.0,0.52289217]
[1727992551517,0.001636,60886.0,60885.0,0.51589217]
[1727992551956,0.001636,60886.0,60885.0,0.52289217]
[1727992552396,0.001636,60886.0,60885.0,0.53289217]
[1727992552856,0.001636,60886.0,60885.0,0.54389217]
[1727992553080,0.001636,60886.0,60885.0,0.52689217]
[1727992553317,0.001636,60886.0,60885.0,0.53389217]
[1727992553535,0.001636,60886.0,60885.0,0.54489217]
[1727992569781,0.001636,60886.0,60885.0,0.37079217]
[1727992569997,0.001636,60886.0,60885.0,0.49335239]
[1727992577640,0.001636,60886.0,60885.0,0.20760546]
[1727992581530,0.001636,60886.0,60885.0,0.37079217]
[1727992581709,0.001636,60886.0,60885.0,0.54859217]
[1727992582382,0.001636,60886.0,60885.0,0.54159217]
[1727992582606,0.001636,60886.0,60885.0,0.51959217]
[1727992582833,0.001636,60886.0,60885.0,0.53859217]
[1727992583293,0.001636,60886.0,60885.0,0.52759217]
[1727992583529,0.001636,60886.0,60885.0,0.54059217]
[1727992588754,0.001636,60886.0,60885.0,0.56359217]
[1727992589664,0.001636,60886.0,60885.0,0.55559217]
[1727992589903,0.001636,60886.0,60885.0,0.55059217]
[1727992590125,0.001636,60886.0,60885.0,0.56459217]
[1727992590350,0.001636,60886.0,60885.0,0.55659217]
[1727992590789,0.001636,60886.0,60885.0,0.56759217]
[1727992601577,0.001636,60886.0,60885.0,0.55659217]
[1727992601803,0.001636,60886.0,60885.0,0.55359217]
[1727992602249,0.001636,60886.0,60885.0,0.55659217]
[1727992602482,0.001636,60886.0,60885.0,0.54259217]
[1727992602755,0.001636,60886.0,60885.0,0.56759217]
[1727992604799,0.001636,60886.0,60885.0,0.54259217]
[1727992605029,0.001636,60886.0,60885.0,0.55359217]
[1727992605247,0.001636,60886.0,60885.0,0.56759217]
[1727992605468,0.001636,60886.0,60885.0,0.55659217]
[1727992605898,0.001636,60886.0,60885.0,0.58159217]
[1727992612660,0.001636,60886.0,60885.0,0.57059217]
[1727992613144,0.001636,60886.0,60885.0,0.55359217]
[1727992613365,0.001636,60886.0,60885.0,0.56759217]
[1727992613634,0.001636,60886.0,60885.0,0.55359217]
[1727992613850,0.001636,60886.0,60885.0,0.56759217]
[1727992614556,0.001636,60886.0,60885.0,0.55659217]
[1727992614786,0.001636,60886.0,60885.0,0.56759217]
[1727992615251,0.001636,60886.0,60885.0,0.66515239]
[1727992615470,0.001636,60886.0,60885.0,0.67915239]
[1727992615693,0.001636,60886.0,60885.0,0.69315239]
[1727992616133,0.001636,60886.0,60885.0,0.67915239]
[1727992617983,0.001636,60886.0,60885.0,0.69315239]
[1727992623319,0.001636,60886.0,60885.0,0.68305858]
[1727992623554,0.001636,60886.0,60885.0,0.69514563]
[1727992643731,0.001636,60886.0,60885.0,0.69714563]
[1727992643948,0.001636,60886.0,60885.0,0.69514563]
[1727992650642,0.001636,60886.0,60885.0,0.74447673]
[1727992650861,0.001636,60886.0,60885.0,0.69514563]
[1727992651571,0.001636,60886.0,60885.0,0.74447673]
[1727992653988,0.001636,60886.0,60885.0,0.74449158]
[1727992655587,0.001636,60886.0,60885.0,0.74450023]
[1727992658832,0.001636,60886.0,60885.0,0.74450057]
[1727992659044,0.001636,60886.0,60885.0,0.69514563]
[1727992661515,0.07390352,60897.0,60893.0,0.328443]
[1727992661516,0.04926901,60897.0,60893.0,0.328443]
[1727992661764,0.09853803,60900.0,60891.0,0.002]
[1727992661765,0.24634789,60900.0,60899.0,0.278706]
[1727992661974,0.24634789,60900.0,60899.0,0.64485293]
[1727992662191,0.001638,60902.0,60901.0,0.1642]
[1727992662422,0.001638,60902.0,60901.0,0.35038671]
[1727992662633,0.001638,60902.0,60901.0,0.36303696]
[1727992665003,0.001638,60902.0,60901.0,0.36703696]
[1727992665215,0.001638,60902.0,60901.0,0.37503696]
[1727992665425,0.001638,60902.0,60901.0,0.47071682]
[1727992666759,0.001638,60902.0,60901.0,0.55111682]
[1727992674568,0.001638,60902.0,60901.0,0.54711682]
[1727992674778,0.001638,60902.0,60901.0,0.55711682]
[1727992675223,0.001638,60902.0,60901.0,0.54911682]
[1727992675439,0.001638,60902.0,60901.0,0.55311682]
[1727992675657,0.001638,60902.0,60901.0,0.56511682]
[1727992681127,0.001638,60902.0,60901.0,0.53911682]
[1727992681599,0.001638,60902.0,60901.0,0.56711682]
[1727992682321,0.001638,60902.0,60901.0,0.58111682]
[1727992682818,0.001638,60902.0,60901.0,0.68111682]
[1727992684953,0.24634789,60914.0,60913.0,0.164168]
[1727992685188,0.24634789,60914.0,60913.0,0.44991493]
[1727992685436,0.001638,60918.0,60915.0,0.164161]
[1727992685662,0.001638,60918.0,60917.0,0.12256022]
[1727992685883,0.001638,60918.0,60917.0,0.28574693]
[1727992686119,0.001638,60918.0,60917.0,0.29867867]
[1727992686577,0.001638,60918.0,60917.0,0.46283567]
[1727992688355,0.001638,60918.0,60917.0,0.46883567]
[1727992689351,0.001638,60918.0,60917.0,0.47083567]
[1727992690029,0.001638,60918.0,60917.0,0.47501674]
[1727992692794,0.001638,60918.0,60917.0,0.49801674]
[1727992693784,0.001638,60918.0,60917.0,0.58321674]
[1727992694020,0.001638,60918.0,60917.0,0.59721674]
[1727992694240,0.001638,60918.0,60917.0,0.59521674]
[1727992694462,0.001638,60918.0,60917.0,0.60921674]
[1727992694682,0.001638,60918.0,60917.0,0.61821674]
[1727992695136,0.001638,60918.0,60917.0,0.60921674]
[1727992695377,0.001638,60918.0,60917.0,0.61821674]
[1727992697903,0.001638,60918.0,60917.0,0.69501674]
[1727992698591,0.001638,60918.0,60917.0,0.68601674]
[1727992698807,0.001638,60918.0,60917.0,0.69501674]
[1727992699252,0.001638,60918.0,60917.0,0.65801674]
[1727992699697,0.001638,60918.0,60917.0,0.67201674]
[1727992700455,0.001638,60918.0,60917.0,0.65801674]
[1727992700689,0.001638,60918.0,60917.0,0.68301674]
[1727992701146,0.001638,60918.0,60917.0,0.67201674]
[1727992702242,0.001638,60918.0,60917.0,0.68601674]
[1727992705929,0.001638,60918.0,60917.0,0.78601674]
[1727992706852,0.001638,60918.0,60917.0,0.77701674]
[1727992707085,0.001638,60918.0,60917.0,0.76301674]
[1727992707306,0.001638,60918.0,60917.0,0.77701674]
[1727992707533,0.001638,60918.0,60917.0,0.79101674]
[1727992708263,0.001638,60926.0,60925.0,0.49039622]
[1727992708497,0.001638,60926.0,60925.0,0.65358293]
[1727992708710,0.001638,60926.0,60925.0,0.66632482]
[1727992709604,0.001638,60926.0,60925.0,0.67932482]
[1727992710487,0.001638,60926.0,60925.0,0.68732482]
[1727992714107,0.001638,60926.0,60925.0,0.69147782]
[1727992718361,0.001638,60941.0,60940.0,0.164095]
[1727992718594,0.001638,60941.0,60940.0,0.339495]
[1727992718828,0.001638,60941.0,60940.0,0.37545749]
[1727992720156,0.001638,60941.0,60940.0,0.38845749]
[1727992720370,0.001638,60941.0,60940.0,0.5516442]
[1727992720801,0.001638,60941.0,60940.0,0.5596442]
[1727992722855,0.001638,60941.0,60940.0,0.51112952]
[1727992724186,0.001638,60941.0,60940.0,0.60672952]
[1727992724898,0.001638,60941.0,60940.0,0.68652952]
[1727992725371,0.001638,60941.0,60940.0,0.66552952]
[1727992725591,0.001638,60941.0,60940.0,0.67752952]
[1727992725807,0.001638,60941.0,60940.0,0.69152952]
[1727992727163,0.001638,60941.0,60940.0,0.69352952]
[1727992727385,0.001638,60941.0,60940.0,0.69152952]
[1727992729829,0.001638,60941.0,60940.0,0.5689693]
[1727992730033,0.001638,60941.0,60940.0,0.51612952]
[1727992730473,0.001638,60941.0,60940.0,0.3935693]
[1727992730918,0.001638,60941.0,60940.0,0.51612952]
[1727992731765,0.001638,60941.0,60940.0,0.3935693]
[1727992731988,0.001638,60941.0,60940.0,0.2064743]
[1727992732245,0.261231,60941.0,60940.0,0.03896249]
[1727992732670,0.261231,60941.0,60940.0,0.026]
[1727992732880,0.261231,60941.0,60940.0,0.01283351]
[1727992733113,0.261231,60941.0,60940.0,0.02083351]
[1727992733346,0.261231,60941.0,60940.0,0.021]
[1727992733609,0.261231,60941.0,60940.0,0.008]
[1727992733836,0.337031,60941.0,60940.0,0.015]
[1727992734729,0.337031,60941.0,60940.0,0.007]
[1727992734986,0.337031,60941.0,60940.0,0.01]
[1727992735429,0.337031,60941.0,60940.0,0.007]
[1727992735659,0.164103,60937.0,60936.0,0.12256022]
[1727992735919,0.164114,60933.0,60932.0,0.36890811]
[1727992736372,0.164114,60933.0,60928.0,0.000818]
[1727992736373,0.32824,60931.0,60928.0,0.000818]
[1727992736375,0.164125,60929.0,60928.0,0.000818]
[1727992738002,0.164125,60929.0,60928.0,0.01376443]
[1727992738236,0.164125,60929.0,60928.0,0.000818]
[1727992738468,0.164125,60929.0,60928.0,0.01376443]
[1727992738699,0.164125,60929.0,60928.0,0.002818]
[1727992738923,0.164125,60929.0,60928.0,0.01576443]
[1727992739152,0.164125,60929.0,60928.0,0.002818]
[1727992739380,0.164125,60929.0,60928.0,0.02176443]
[1727992739831,0.164125,60929.0,60928.0,0.006818]
[1727992740110,0.164125,60929.0,60928.0,0.000818]
[1727992740982,0.164125,60929.0,60928.0,0.005818]
[1727992741205,0.164125,60929.0,60928.0,0.006818]
[1727992741680,0.164125,60929.0,60928.0,0.005818]
[1727992741902,0.164125,60929.0,60928.0,0.006818]
[1727992743039,0.164125,60929.0,60928.0,0.005818]
[1727992743248,0.164125,60929.0,60928.0,0.000818]
[1727992743676,0.164125,60929.0,60928.0,0.002818]
[1727992744344,0.165125,60929.0,60928.0,0.002818]
[1727992744781,0.164125,60929.0,60928.0,0.002818]
[1727992745006,0.165125,60929.0,60928.0,0.002818]
[1727992746966,0.165125,60929.0,60928.0,0.45269293]
[1727992746967,0.001,60929.0,60928.0,0.45269293]
[1727992747452,0.001,60929.0,60928.0,0.55693535]
[1727992753375,0.001,60929.0,60928.0,0.43437513]
[1727992753598,0.002636,60929.0,60928.0,0.43437513]
[1727992758670,0.002636,60929.0,60928.0,0.17904713]
[1727992758884,0.166761,60929.0,60928.0,0.01586042]
[1727992780419,0.21598405,60929.0,60928.0,0.01586042]
[1727992781742,0.21598405,60929.0,60928.0,0.02011415]
[1727992784332,0.21598405,60929.0,60928.0,0.01586042]
[1727992787933,0.166761,60929.0,60928.0,0.01586042]
[1727992788781,0.24059558,60929.0,60928.0,0.01586042]
[1727992789203,0.166761,60929.0,60928.0,0.01586042]
[1727992789439,0.24059558,60929.0,60928.0,0.01586042]
[1727992794801,0.47707396,60929.0,60928.0,0.01586042]
[1727992796237,0.24064574,60929.0,60928.0,0.01586042]
[1727992796468,0.166761,60929.0,60928.0,0.01586042]
[1727992799508,0.3786492,60929.0,60928.0,0.01586042]
[1727992799769,0.166761,60929.0,60928.0,0.01586042]
[1727992800455,0.47686792,60929.0,60928.0,0.01586042]
[1727992800754,0.31274292,60929.0,60928.0,0.01586042]
[1727992800995,0.21434814,60929.0,60928.0,0.01586042]
[1727992801233,0.31279425,60929.0,60928.0,0.01586042]
[1727992801486,0.47691925,60929.0,60928.0,0.01586042]
[1727992801725,0.31279425,60929.0,60928.0,0.51907513]
[1727992801971,0.002636,60929.0,60928.0,0.54207513]
[1727992802186,0.002636,60929.0,60928.0,0.66463535]
[1727992802414,0.001636,60929.0,60928.0,0.66263535]
[1727992802631,0.001636,60929.0,60928.0,0.66863535]
[1727992802862,0.001636,60929.0,60928.0,0.67063535]
[1727992803075,0.001636,60929.0,60928.0,0.66463535]
[1727992803307,0.001636,60929.0,60928.0,0.67863535]
[1727992803527,0.001636,60929.0,60928.0,0.66463535]
[1727992803951,0.001636,60929.0,60928.0,0.66263535]
[1727992804390,0.001636,60929.0,60928.0,0.67563535]
[1727992807599,0.001636,60929.0,60928.0,0.68963535]
[1727992809539,0.001636,60929.0,60928.0,0.04086042]
[1727992809758,0.165761,60929.0,60928.0,0.04086042]
[1727992809986,0.23954039,60929.0,60928.0,0.04086042]
[1727992810253,0.37673964,60929.0,60928.0,0.04086042]
[1727992810498,0.53022798,60929.0,60928.0,0.01386042]
[1727992810946,0.164152,60919.0,60918.0,0.000818]
[1727992811181,0.47349995,60919.0,60918.0,0.000818]
[1727992811430,0.37513064,60919.0,60918.0,0.000818]
[1727992811677,0.164152,60919.0,60918.0,0.000818]
[1727992811912,0.37386871,60919.0,60918.0,0.000818]
[1727992812147,0.47223802,60919.0,60918.0,0.000818]
[1727992812389,0.37386871,60919.0,60918.0,0.000818]
[1727992813029,0.62875959,60919.0,60918.0,0.000818]
[1727992813250,0.76206852,60919.0,60918.0,0.001818]
[1727992813524,0.732394,60919.0,60918.0,0.000818]
[1727992813973,0.63088151,60919.0,60918.0,0.000818]
[1727992814209,0.63988151,60919.0,60918.0,0.001818]
[1727992815199,0.63088151,60919.0,60918.0,0.000818]
[1727992815681,0.58450312,60919.0,60918.0,0.001818]
[1727992815925,0.57750312,60919.0,60918.0,0.000818]
[1727992816178,0.73453979,60919.0,60918.0,0.000818]
[1727992816423,0.74453979,60919.0,60918.0,0.001818]
[1727992816671,0.59850312,60919.0,60918.0,0.002818]
[1727992817144,0.58750312,60919.0,60918.0,0.001818]
[1727992817390,0.71012977,60919.0,60918.0,0.001818]
[1727992817633,0.70012977,60919.0,60918.0,0.000818]
[1727992817873,0.70012977,60919.0,60918.0,0.001818]
[1727992817874,0.83533225,60919.0,60918.0,0.001818]
[1727992818337,0.82428797,60919.0,60918.0,0.000818]
[1727992818576,0.7037056,60919.0,60918.0,0.000818]
[1727992819523,0.80874111,60919.0,60918.0,0.001818]
[1727992819756,0.80174111,60919.0,60918.0,0.000818]
[1727992819994,0.80874111,60919.0,60918.0,0.001818]
[1727992820196,0.81974111,60919.0,60918.0,0.002818]
[1727992820485,0.81974111,60919.0,60918.0,0.001818]
[1727992820715,0.7177056,60919.0,60918.0,0.001818]
[1727992820944,0.7287056,60919.0,60918.0,0.002818]
[1727992821172,0.72757294,60919.0,60918.0,0.002818]
[1727992821392,0.58033186,60919.0,60918.0,0.001818]
[1727992821867,0.67465214,60919.0,60918.0,0.000818]
[1727992822116,0.36865375,60919.0,60918.0,0.000818]
[1727992822365,0.44212916,60919.0,60918.0,0.000818]
[1727992822632,0.44912916,60919.0,60918.0,0.001818]
[1727992822872,0.67132786,60919.0,60918.0,0.001818]
[1727992823114,0.48555375,60919.0,60918.0,0.002818]
[1727992823353,0.46755375,60919.0,60918.0,0.000818]
[1727992823594,0.55200221,60919.0,60918.0,0.002818]
[1727992823830,0.55900221,60919.0,60918.0,0.002818]
[1727992824073,0.54800221,60919.0,60918.0,0.001818]
[1727992824317,0.55900221,60919.0,60918.0,0.002818]
[1727992824555,0.48555375,60919.0,60918.0,0.002818]
[1727992825056,0.47155375,60919.0,60918.0,0.001818]
[1727992825292,0.47855375,60919.0,60918.0,0.002818]
[1727992825530,0.52750088,60919.0,60918.0,0.001818]
[1727992825760,0.53450088,60919.0,60918.0,0.002818]
[1727992825995,0.45981934,60919.0,60918.0,0.002818]
[1727992826474,0.50876677,60919.0,60918.0,0.002818]
[1727992826723,0.67195348,60919.0,60918.0,0.002818]
[1727992827636,0.50876677,60919.0,60918.0,0.002818]
[1727992828583,0.45981934,60919.0,60918.0,0.002818]
[1727992829538,0.50876677,60919.0,60918.0,0.002818]
[1727992830016,0.78795459,60919.0,60918.0,0.002818]
[1727992830488,0.78785174,60919.0,60918.0,0.002818]
[1727992830970,0.95103845,60919.0,60918.0,0.002818]
[1727992831926,0.94903845,60919.0,60918.0,0.002818]
[1727992832167,0.78585174,60919.0,60918.0,0.002818]
[1727992832648,0.68804481,60919.0,60918.0,0.002818]
[1727992833156,0.68781792,60919.0,60918.0,0.002818]
[1727992833590,0.48081934,60919.0,60918.0,0.002818]
[1727992833802,0.6033795,60919.0,60918.0,0.002818]
[1727992834228,0.76001337,60919.0,60918.0,0.002818]
[1727992834458,0.83331135,60919.0,60918.0,0.002818]
[1727992834902,0.8590486,60919.0,60918.0,0.002818]
[1727992835138,0.83331135,60919.0,60918.0,0.002818]
[1727992835834,0.83494735,60919.0,60918.0,0.002818]
[1727992836295,0.81050901,60919.0,60918.0,0.002818]
[1727992836522,0.76164937,60919.0,60918.0,0.002818]
[1727992837216,0.83494735,60919.0,60918.0,0.002818]
[1727992837673,0.83694735,60919.0,60918.0,0.002818]
[1727992837898,0.86268466,60919.0,60918.0,0.002818]
[1727992838636,0.91583778,60919.0,60918.0,0.002818]
[1727992839095,0.89010047,60919.0,60918.0,0.002818]
[1727992839314,0.89008165,60919.0,60918.0,0.002818]
[1727992840461,1.02368651,60919.0,60918.0,0.002818]
[1727992840651,1.02368651,60919.0,60907.0,0.24634789]
[1727992840652,0.264182,60908.0,60907.0,0.24634789]
[1727992841150,0.264182,60908.0,60902.0,0.000818]
[1727992841151,0.164195,60903.0,60902.0,0.000818]
[1727992842299,0.18993546,60903.0,60902.0,0.000818]
[1727992842521,0.19493546,60903.0,60902.0,0.000818]
[1727992842733,0.19793546,60903.0,60902.0,0.000818]
[1727992844380,0.32694191,60903.0,60902.0,0.000818]
[1727992844605,0.25128056,60903.0,60902.0,0.000818]
[1727992846670,0.2255401,60903.0,60902.0,0.000818]
[1727992850049,0.25128047,60903.0,60902.0,0.000818]
[1727992853031,0.35328047,60903.0,60902.0,0.000818]
[1727992853251,0.47584063,60903.0,60902.0,0.000818]
[1727992853736,0.54915451,60903.0,60902.0,0.000818]
[1727992854153,0.68246267,60903.0,60902.0,0.000818]
[1727992854365,0.80465247,60903.0,60902.0,0.000818]
[1727992854603,0.6567223,60903.0,60902.0,0.000818]
[1727992857600,0.6824671,60903.0,60902.0,0.000818]
[1727992858030,0.84546779,60903.0,60902.0,0.000818]
[1727992858993,0.65653628,60903.0,60902.0,0.000818]
[1727992862170,0.68228132,60903.0,60902.0,0.000818]
[1727992862871,0.55772116,60903.0,60902.0,0.078918]
[1727992863102,0.55972116,60903.0,60902.0,0.078918]
[1727992863776,0.55772116,60903.0,60902.0,0.078918]
[1727992864031,0.70487837,60903.0,60902.0,0.078918]
[1727992866568,0.67913333,60903.0,60902.0,0.078918]
[1727992868559,0.53197612,60903.0,60902.0,0.078918]
[1727992869928,0.55771956,60903.0,60902.0,0.078918]
[1727992870194,0.7049356,60903.0,60902.0,0.078918]
[1727992870888,0.67967415,60903.0,60902.0,0.078918]
[1727992872578,0.53244816,60903.0,60902.0,0.078918]
[1727992874441,0.55819165,60903.0,60902.0,0.078918]
[1727992876521,0.53244816,60903.0,60902.0,0.078918]
[1727992879218,0.53249553,60903.0,60902.0,0.078918]
[1727992879647,0.55823904,60903.0,60902.0,0.078918]
[1727992880484,0.56023904,60903.0,60902.0,0.078918]
[1727992885244,0.56087812,60903.0,60902.0,0.078918]
[1727992885490,0.72667986,60903.0,60902.0,0.078918]
[1727992885954,0.70093635,60903.0,60902.0,0.078918]
[1727992890113,0.82598,60903.0,60902.0,0.078918]
[1727992890348,0.70109307,60903.0,60902.0,0.078918]
[1727992891021,0.53522339,60903.0,60902.0,0.078918]
[1727992893253,0.53525079,60903.0,60902.0,0.078918]
[1727992895017,0.5352627,60903.0,60902.0,0.078918]
[1727992897727,0.56100648,60903.0,60902.0,0.078918]
[1727992898795,0.5352627,60903.0,60902.0,0.078918]
[1727992900060,0.53531525,60903.0,60902.0,0.078918]
[1727992910749,0.56105927,60903.0,60902.0,0.078918]
[1727992911889,0.53531525,60903.0,60902.0,0.078918]
[1727992915611,0.53331525,60903.0,60902.0,0.078918]
[1727992915849,0.53531525,60903.0,60902.0,0.078918]
[1727992917227,0.53531525,60903.0,60902.0,0.000818]
[1727992918552,0.82106212,60903.0,60902.0,0.000818]
[1727992918974,0.65787541,60903.0,60902.0,0.000818]
[1727992922795,0.65793453,60903.0,60902.0,0.000818]
[1727992923008,0.94890251,60903.0,60902.0,0.000818]
[1727992923220,0.65793453,60903.0,60902.0,0.000818]
[1727992936747,0.68367994,60903.0,60902.0,0.000818]
[1727992937372,0.68359626,60903.0,60902.0,0.000818]
[1727992937813,0.65785085,60903.0,60902.0,0.000818]
[1727992941066,0.68359625,60903.0,60902.0,0.000818]
[1727992942196,0.657809,60903.0,60902.0,0.000818]
[1727992945440,0.68355437,60903.0,60902.0,0.000818]
[1727992946550,0.657809,60903.0,60902.0,0.000818]
[1727992947019,0.53524884,60903.0,60902.0,0.000818]
[1727992953486,0.53508475,60903.0,60902.0,0.000818]
[1727992954130,0.56082945,60903.0,60902.0,0.000818]
[1727992955403,0.53508475,60903.0,60902.0,0.000818]
[1727992956990,0.53510177,60903.0,60902.0,0.000818]
[1727992961683,0.53510177,60903.0,60887.0,0.1713]
[1727992961684,0.164235,60888.0,60887.0,0.1713]
[1727992961905,0.42500296,60888.0,60887.0,0.1713]
[1727992962623,0.71539497,60888.0,60887.0,0.1713]
[1727992962844,0.42500296,60888.0,60887.0,0.1713]
[1727992964449,0.42500296,60888.0,60887.0,0.1743]
[1727992964691,0.42500296,60888.0,60887.0,0.1713]
[1727992964943,0.42500296,60888.0,60887.0,0.1743]
[1727992965853,0.57238053,60888.0,60887.0,0.1743]
[1727992966353,0.57375432,60888.0,60887.0,0.1743]
[1727992968596,0.57370945,60888.0,60887.0,0.175118]
[1727992969523,0.42636472,60888.0,60887.0,0.175118]
[1727992976021,0.42615927,60888.0,60887.0,0.175118]
[1727992981584,0.42615927,60888.0,60887.0,0.62510287]
[1727992981585,0.10857917,60888.0,60887.0,0.62510287]
[1727992981801,0.001636,60902.0,60893.0,0.343922]
[1727992981802,0.24634789,60900.0,60893.0,0.343922]
[1727992982060,0.06568361,60894.0,60893.0,0.53046887]
[1727992982270,0.05072892,60902.0,60900.0,0.0805]
[1727992982485,0.09818585,60906.0,60905.0,0.28675016]
[1727992982699,0.09818585,60906.0,60905.0,0.53043687]
[1727992982916,0.09818585,60906.0,60905.0,0.55793687]
[1727992983993,0.09918585,60906.0,60905.0,0.56393687]
[1727992984432,0.26337285,60906.0,60905.0,0.0865]
[1727992990791,0.165187,60906.0,60905.0,0.0865]
[1727992991228,0.165187,60906.0,60905.0,0.20906016]
[1727992991442,0.165187,60906.0,60905.0,0.53643687]
[1727992991443,0.001,60906.0,60905.0,0.53643687]
[1727992993251,0.001,60906.0,60905.0,0.54068606]
[1727992994593,0.002636,60906.0,60905.0,0.54068606]
[1727992994731,0.002636,60906.0,60905.0,0.53643687]
[1727992995632,0.002636,60906.0,60905.0,0.60052309]
[1727992996396,0.002636,60906.0,60905.0,0.25069]
[1727992996609,0.002636,60906.0,60905.0,0.006]
[1727992996610,0.166823,60906.0,60905.0,0.006]
[1727993001218,0.16675732,60906.0,60905.0,0.006]
[1727993003756,0.24798389,60929.0,60907.0,0.0801]
[1727993003984,0.24798389,60929.0,60906.0,0.1]
[1727993003985,0.24634789,60920.0,60917.0,0.35080338]
[1727993004239,0.24634789,60920.0,60917.0,0.43090338]
[1727993004697,0.001636,60928.0,60926.0,0.18664638]
[1727993005133,0.165764,60928.0,60922.0,0.18664638]
[1727993005363,0.165764,60928.0,60919.0,0.24634789]
[1727993005364,0.164139,60924.0,60919.0,0.24634789]
[1727993005597,0.001636,60928.0,60919.0,0.24634789]
[1727993005598,0.164136,60925.0,60919.0,0.24634789]
[1727993005882,0.164136,60925.0,60918.0,0.164154]
[1727993007452,0.164136,60925.0,60919.0,0.164151]
[1727993007683,0.169136,60925.0,60919.0,0.164151]
[1727993007899,0.169136,60925.0,60917.0,0.59506038]
[1727993007900,0.164136,60925.0,60920.0,0.164149]
[1727993008151,0.167136,60925.0,60920.0,0.164149]
[1727993008590,0.164136,60925.0,60920.0,0.164149]
[1727993008803,0.164139,60924.0,60920.0,0.164149]
[1727993009221,0.25334789,60925.0,60918.0,0.001]
[1727993009435,0.007,60925.0,60918.0,0.001]
[1727993009670,0.164152,60919.0,60918.0,0.001]
[1727993009900,0.264152,60919.0,60918.0,0.001]
[1727993010119,0.164183,60908.0,60903.0,0.0801]
[1727993010337,0.164187,60906.0,60903.0,0.0801]
[1727993010544,0.164184,60907.0,60903.0,0.0801]
[1727993011204,0.328371,60907.0,60903.0,0.0801]
[1727993011440,0.492557,60907.0,60905.0,0.011]
[1727993011668,0.165187,60906.0,60905.0,0.011]
[1727993013007,0.164187,60906.0,60903.0,0.0801]
[1727993013215,0.165187,60906.0,60903.0,0.0801]
[1727993013822,0.001,60906.0,60903.0,0.0801]
[1727993014031,0.16419,60905.0,60903.0,0.0801]
[1727993014238,0.16419,60905.0,60904.0,0.011818]
[1727993014648,0.16419,60905.0,60904.0,0.000818]
[1727993014862,0.16419,60905.0,60904.0,0.012818]
[1727993015703,0.16519,60905.0,60904.0,0.012818]
[1727993016116,0.16519,60905.0,60904.0,0.000818]
[1727993016540,0.001,60905.0,60904.0,0.000818]
[1727993016754,0.001,60905.0,60904.0,0.36419671]
[1727993016963,0.002,60905.0,60904.0,0.54719671]
[1727993017172,0.24634789,60914.0,60913.0,0.247168]
[1727993017383,0.24634789,60914.0,60913.0,0.59700109]
[1727993017596,0.164142,60923.0,60918.0,0.164155]
[1727993017803,0.24634789,60919.0,60915.0,0.328326]
[1727993018009,0.328269,60926.0,60919.0,0.18664638]
[1727993018010,0.164142,60923.0,60919.0,0.18664638]
[1727993018215,0.164145,60922.0,60919.0,0.18664638]
[1727993018441,0.24634789,60920.0,60913.0,0.083]
[1727993018655,0.164178,60910.0,60906.0,0.32934789]
[1727993018862,0.164178,60910.0,60906.0,0.49353389]
[1727993019066,0.164178,60910.0,60906.0,0.247186]
[1727993020157,0.164178,60910.0,60906.0,0.253186]
[1727993021124,0.164178,60910.0,60906.0,0.256186]
[1727993021706,0.164184,60908.0,60906.0,0.092]
[1727993021913,0.164184,60907.0,60906.0,0.009]
[1727993022603,0.164184,60907.0,60906.0,0.006]
[1727993022821,0.328364,60908.0,60904.0,0.000818]
[1727993022822,0.16419,60905.0,60904.0,0.000818]
[1727993024324,0.16419,60905.0,60904.0,0.007818]
[1727993024787,0.16419,60905.0,60904.0,0.012818]
[1727993025247,0.02573767,60917.0,60904.0,0.36265109]
[1727993025475,0.24634789,60912.0,60910.0,0.164176]
[1727993025700,0.164164,60915.0,60911.0,0.18664638]
[1727993026209,0.164164,60915.0,60911.0,0.35081938]
[1727993026670,0.164164,60915.0,60911.0,0.18664638]
[1727993027124,0.164164,60915.0,60911.0,0.18864638]
[1727993027611,0.328321,60916.0,60911.0,0.18664638]
[1727993027823,0.164165,60915.0,60911.0,0.18664638]
[1727993028302,0.328311,60918.0,60911.0,0.35081938]
[1727993028549,0.001636,60920.0,60917.0,0.18664638]
[1727993028811,0.24634789,60919.0,60917.0,0.35080238]
[1727993029027,0.001636,60920.0,60917.0,0.35080238]
[1727993029721,0.165786,60920.0,60917.0,0.18664638]
[1727993029944,0.165786,60920.0,60917.0,0.18864638]
[1727993030424,0.165786,60920.0,60917.0,0.18664638]
[1727993030620,0.165786,60920.0,60917.0,0.001]
[1727993031075,0.165786,60920.0,60917.0,0.003]
[1727993031572,0.166786,60920.0,60917.0,0.003]
[1727993033402,0.164152,60919.0,60917.0,0.003]
[1727993034352,0.164152,60919.0,60915.0,0.164161]
[1727993036389,0.164152,60919.0,60917.0,0.003]
[1727993036833,0.164152,60919.0,60915.0,0.164161]
[1727993037052,0.164152,60919.0,60915.0,0.167161]
[1727993037275,0.164152,60919.0,60915.0,0.164161]
[1727993037486,0.164152,60919.0,60917.0,0.003]
[1727993037980,0.164152,60919.0,60915.0,0.164161]
[1727993038207,0.164152,60919.0,60915.0,0.167161]
[1727993038427,0.164152,60919.0,60915.0,0.164161]
[1727993038657,0.164152,60919.0,60917.0,0.003]
[1727993039808,0.164152,60919.0,60915.0,0.164161]
[1727993040281,0.164152,60919.0,60915.0,0.167161]
[1727993040506,0.164152,60919.0,60915.0,0.164161]